[Event "*** Titled Tuesday 3|2 Blitz"]
[Site "Chess.com"]
[Date "2015.03.03"]
[Round "3"]
[White "jup1978"]
[Black "michaelk123"]
[Result "1/2-1/2"]
[WhiteElo "2132"]
[BlackElo "1900"]
[TimeControl "180+2"]
[EndTime "11:40:09 PST"]
[Termination "Game drawn by repetition"]

1. e4 {[%clk 0:03:00]} 1... c5 {[%clk 0:02:58.8]} 2. Nf3 {[%clk 0:03:00.6]} 2...
e6 {[%clk 0:03:00.2]} 3. g3 {[%clk 0:03:00.6]} 3... d5 {[%clk 0:02:56]} 4. exd5
{[%clk 0:03:02.5]} 4... exd5 {[%clk 0:02:57.9]} 5. d4 {[%clk 0:03:03.7]} 5...
Nf6 {[%clk 0:02:58]} 6. Bg2 {[%clk 0:03:04.8]} 6... Nc6 {[%clk 0:02:55.8]} 7.
O-O {[%clk 0:03:05.7]} 7... Be7 {[%clk 0:02:54.3]} 8. Nc3 {[%clk 0:03:03]} 8...
h6 {[%clk 0:02:50.7]} 9. Be3 {[%clk 0:02:52.2]} 9... cxd4 {[%clk 0:02:50.1]} 10.
Bxd4 {[%clk 0:02:46.9]} 10... Be6 {[%clk 0:02:43]} 11. Re1 {[%clk 0:02:43]}
11... O-O {[%clk 0:02:44.2]} 12. Ne5 {[%clk 0:02:21.4]} 12... Rc8 {[%clk
0:02:43.6]} 13. Nxc6 {[%clk 0:02:06.3]} 13... bxc6 {[%clk 0:02:34.5]} 14. Rb1
{[%clk 0:02:06.4]} 14... c5 {[%clk 0:02:35.3]} 15. Bxf6 {[%clk 0:02:06.5]} 15...
Bxf6 {[%clk 0:02:33.1]} 16. Nxd5 {[%clk 0:02:07.3]} 16... Bxd5 {[%clk
0:02:21.5]} 17. Bxd5 {[%clk 0:02:09.2]} 17... c4 {[%clk 0:02:19.1]} 18. Qf3
{[%clk 0:02:05.6]} 18... Qa5 {[%clk 0:02:16.4]} 19. b3 {[%clk 0:02:02.3]} 19...
Qxa2 {[%clk 0:02:07.2]} 20. Bxc4 {[%clk 0:01:58.1]} 20... Qxc2 {[%clk
0:02:05.7]} 21. Rbc1 {[%clk 0:01:58.1]} 21... Qg6 {[%clk 0:01:24.9]} 22. Re4
{[%clk 0:01:42.7]} 22... Rce8 {[%clk 0:01:13]} 23. Rg4 {[%clk 0:01:38.2]} 23...
Qh7 {[%clk 0:01:08]} 24. Qxf6 {[%clk 0:01:35.5]} 24... Re4 {[%clk 0:00:48.1]}
25. Bxf7+ {[%clk 0:01:22.9]} 25... Kh8 {[%clk 0:00:40.2]} 26. Qf3 {[%clk
0:01:06.4]} 26... Re7 {[%clk 0:00:22.3]} 27. Rf4 {[%clk 0:01:01.8]} 27... g5
{[%clk 0:00:22.6]} 28. Qc3+ {[%clk 0:00:40.1]} 28... Qg7 {[%clk 0:00:23.4]} 29.
Rf6 {[%clk 0:00:37.7]} 29... Rexf7 {[%clk 0:00:09.7]} 30. Rxh6+ {[%clk
0:00:37.9]} 30... Kg8 {[%clk 0:00:11.4]} 31. Qxg7+ {[%clk 0:00:33.5]} 31... Kxg7
{[%clk 0:00:13.3]} 32. Rhc6 {[%clk 0:00:34]} 32... Rxf2 {[%clk 0:00:14.4]} 33.
Rc7+ {[%clk 0:00:34.6]} 33... R2f7 {[%clk 0:00:15.9]} 34. Rxf7+ {[%clk
0:00:35.5]} 34... Rxf7 {[%clk 0:00:17.6]} 35. Rc5 {[%clk 0:00:36.3]} 35... Kg6
{[%clk 0:00:17.4]} 36. Rb5 {[%clk 0:00:37.6]} 36... Rf3 {[%clk 0:00:16.3]} 37.
Kg2 {[%clk 0:00:38.6]} 37... Rc3 {[%clk 0:00:17.4]} 38. Kh3 {[%clk 0:00:37.9]}
38... a6 {[%clk 0:00:17.2]} 39. Rb6+ {[%clk 0:00:37.1]} 39... Kf5 {[%clk
0:00:18.3]} 40. Rxa6 {[%clk 0:00:37.1]} 40... Rxb3 {[%clk 0:00:16.9]} 41. Ra5+
{[%clk 0:00:38.5]} 41... Kg6 {[%clk 0:00:17.8]} 42. Ra4 {[%clk 0:00:38.2]} 42...
Kf5 {[%clk 0:00:16.8]} 43. Ra5+ {[%clk 0:00:35.2]} 43... Kg6 {[%clk 0:00:17.8]}
44. Kg4 {[%clk 0:00:36.5]} 44... Rb4+ {[%clk 0:00:18]} 45. Kh3 {[%clk
0:00:36.1]} 45... Rb2 {[%clk 0:00:15.2]} 46. Rc5 {[%clk 0:00:34.5]} 46... Ra2
{[%clk 0:00:13.3]} 47. Kg4 {[%clk 0:00:34.1]} 47... Ra4+ {[%clk 0:00:14.3]} 48.
Kh3 {[%clk 0:00:35.3]} 48... Ra3 {[%clk 0:00:15]} 49. Rc6+ {[%clk 0:00:35.3]}
49... Kf5 {[%clk 0:00:15.7]} 50. Rc2 {[%clk 0:00:32.9]} 50... Rb3 {[%clk
0:00:15.6]} 51. Rf2+ {[%clk 0:00:33.7]} 51... Kg6 {[%clk 0:00:16.1]} 52. Kg4
{[%clk 0:00:34.5]} 52... Rb4+ {[%clk 0:00:17.2]} 53. Kh3 {[%clk 0:00:35.6]}
53... Rb3 {[%clk 0:00:16.5]} 54. Kg2 {[%clk 0:00:37]} 54... g4 {[%clk
0:00:13.6]} 55. h4 {[%clk 0:00:34.2]} 55... gxh3+ {[%clk 0:00:14.2]} 56. Kxh3
{[%clk 0:00:35.2]} 56... Ra3 {[%clk 0:00:15.7]} 57. Rb2 {[%clk 0:00:35.8]} 57...
Ra4 {[%clk 0:00:14.6]} 58. Rb6+ {[%clk 0:00:35.5]} 58... Kg7 {[%clk 0:00:15]}
59. g4 {[%clk 0:00:35.6]} 59... Ra5 {[%clk 0:00:13.8]} 60. Kh4 {[%clk
0:00:36.7]} 60... Rc5 {[%clk 0:00:14.3]} 61. g5 {[%clk 0:00:37.1]} 61... Rc1
{[%clk 0:00:14.5]} 62. Rb7+ {[%clk 0:00:36.8]} 62... Kg6 {[%clk 0:00:14.9]} 63.
Rb6+ {[%clk 0:00:37.6]} 63... Kg7 {[%clk 0:00:15.7]} 64. Rb4 {[%clk 0:00:28.7]}
64... Kg6 {[%clk 0:00:14.3]} 65. Rb6+ {[%clk 0:00:27.8]} 65... Kg7 {[%clk
0:00:15.1]} 66. Kg4 {[%clk 0:00:29.1]} 66... Rg1+ {[%clk 0:00:15.3]} 67. Kf5
{[%clk 0:00:30.4]} 67... Rf1+ {[%clk 0:00:16.6]} 68. Ke5 {[%clk 0:00:30.7]}
68... Rg1 {[%clk 0:00:16.4]} 69. Kf5 {[%clk 0:00:29.3]} 69... Rf1+ {[%clk
0:00:17.5]} 70. Kg4 {[%clk 0:00:30.6]} 70... Rg1+ {[%clk 0:00:18.9]} 71. Kh4
{[%clk 0:00:32]} 71... Rh1+ {[%clk 0:00:19.7]} 72. Kg3 {[%clk 0:00:32.8]} 72...
Rg1+ {[%clk 0:00:21]} 73. Kf4 {[%clk 0:00:33.9]} 73... Rf1+ {[%clk 0:00:22]} 74.
Kg4 {[%clk 0:00:35.3]} 74... Rg1+ {[%clk 0:00:23.3]} 75. Kf4 {[%clk 0:00:36.7]}
75... Rf1+ {[%clk 0:00:24.4]} 76. Kg4 {[%clk 0:00:37.2]} 76... Rg1+ {[%clk
0:00:25.6]} 77. Kf4 {[%clk 0:00:38.6]} 77... Rf1+ {[%clk 0:00:26.7]} 78. Kg4
{[%clk 0:00:39.9]} 78... Rg1+ {[%clk 0:00:26.4]} 1/2-1/2

[Event "*** Titled Tuesday 3|2 Blitz"]
[Site "Chess.com"]
[Date "2015.03.03"]
[Round "3"]
[White "KyronGriffith"]
[Black "SuPeR_Fm"]
[Result "1/2-1/2"]
[WhiteElo "2164"]
[BlackElo "2357"]
[TimeControl "180+2"]
[EndTime "11:40:26 PST"]
[Termination "Game drawn by repetition"]

1. e4 {[%clk 0:03:00]} 1... e6 {[%clk 0:02:54.9]} 2. d3 {[%clk 0:02:59.9]} 2...
d5 {[%clk 0:02:54.9]} 3. Nd2 {[%clk 0:03:01.4]} 3... Nf6 {[%clk 0:02:51.3]} 4.
Ngf3 {[%clk 0:03:02.6]} 4... Nc6 {[%clk 0:02:51.7]} 5. Be2 {[%clk 0:03:00.7]}
5... dxe4 {[%clk 0:02:50.2]} 6. dxe4 {[%clk 0:03:00.3]} 6... e5 {[%clk
0:02:51.4]} 7. O-O {[%clk 0:03:00.9]} 7... Bc5 {[%clk 0:02:50.9]} 8. c3 {[%clk
0:03:01.5]} 8... a5 {[%clk 0:02:49.9]} 9. Qc2 {[%clk 0:03:02.4]} 9... O-O {[%clk
0:02:48.5]} 10. h3 {[%clk 0:02:59.9]} 10... Qe7 {[%clk 0:02:38]} 11. Re1 {[%clk
0:03:00.1]} 11... Nh5 {[%clk 0:02:34]} 12. Nf1 {[%clk 0:03:00.2]} 12... Rd8
{[%clk 0:02:29.9]} 13. Bg5 {[%clk 0:02:50.8]} 13... f6 {[%clk 0:02:28.3]} 14.
Be3 {[%clk 0:02:51.7]} 14... Bxe3 {[%clk 0:02:23]} 15. Nxe3 {[%clk 0:02:53.6]}
15... Nf4 {[%clk 0:02:24.1]} 16. Bf1 {[%clk 0:02:54.9]} 16... Be6 {[%clk
0:02:24]} 17. Rad1 {[%clk 0:02:52.9]} 17... a4 {[%clk 0:02:20.4]} 18. Nf5 {[%clk
0:02:31.8]} 18... Qf7 {[%clk 0:02:17.8]} 19. Rxd8+ {[%clk 0:02:23.7]} 19... Nxd8
{[%clk 0:02:19.7]} 20. a3 {[%clk 0:02:20.8]} 20... Nc6 {[%clk 0:02:16.8]} 21. g3
{[%clk 0:02:03.2]} 21... Qh5 {[%clk 0:02:07.9]} 22. N3h4 {[%clk 0:01:40.4]}
22... Ng6 {[%clk 0:02:00.4]} 23. Nf3 {[%clk 0:01:32.5]} 23... Nge7 {[%clk
0:01:39.1]} 24. g4 {[%clk 0:01:29.2]} 24... Qf7 {[%clk 0:01:37.2]} 25. N3h4
{[%clk 0:01:18.3]} 25... Ng6 {[%clk 0:01:24]} 26. Nxg6 {[%clk 0:01:08]} 26...
hxg6 {[%clk 0:01:25.4]} 27. Ne3 {[%clk 0:01:08.9]} 27... Ne7 {[%clk 0:01:19.9]}
28. Qe2 {[%clk 0:01:06.5]} 28... c6 {[%clk 0:01:19.3]} 29. Rd1 {[%clk
0:01:03.8]} 29... g5 {[%clk 0:01:20.2]} 30. Rd6 {[%clk 0:01:00.3]} 30... Ng6
{[%clk 0:01:15.7]} 31. Qd1 {[%clk 0:00:57.8]} 31... Nf4 {[%clk 0:01:16.2]} 32.
Kh2 {[%clk 0:00:56.9]} 32... Kh7 {[%clk 0:01:10.6]} 33. Ng2 {[%clk 0:00:55.9]}
33... Bb3 {[%clk 0:01:09.8]} 34. Qd2 {[%clk 0:00:54.8]} 34... Rh8 {[%clk
0:01:02.7]} 35. Nxf4 {[%clk 0:00:54.7]} 35... gxf4 {[%clk 0:01:00.5]} 36. f3
{[%clk 0:00:54.8]} 36... Kg6 {[%clk 0:01:00.5]} 37. Rd7 {[%clk 0:00:52.9]} 37...
Qg8 {[%clk 0:00:57.2]} 38. Rxb7 {[%clk 0:00:52.1]} 38... Bc4 {[%clk 0:00:49]}
39. Qd7 {[%clk 0:00:48.3]} 39... Be6 {[%clk 0:00:35]} 40. Qxc6 {[%clk
0:00:44.6]} 40... Kg5 {[%clk 0:00:26.7]} 41. Qxa4 {[%clk 0:00:39.6]} 41... Qd8
{[%clk 0:00:25.4]} 42. Rxg7+ {[%clk 0:00:34.3]} 42... Kh6 {[%clk 0:00:23.8]} 43.
Qa7 {[%clk 0:00:20.1]} 43... Qd2+ {[%clk 0:00:24.3]} 44. Kg1 {[%clk 0:00:21.3]}
44... Qe1 {[%clk 0:00:25.9]} 45. Re7 {[%clk 0:00:20.3]} 45... Qg3+ {[%clk
0:00:20.5]} 46. Bg2 {[%clk 0:00:21.7]} 46... Qe1+ {[%clk 0:00:18.2]} 47. Kh2
{[%clk 0:00:23.2]} 47... Qg3+ {[%clk 0:00:18.6]} 48. Kh1 {[%clk 0:00:24.6]}
48... Bxg4 {[%clk 0:00:14]} 49. fxg4 {[%clk 0:00:18.8]} 49... f3 {[%clk
0:00:14.9]} 50. Qg1 {[%clk 0:00:19.7]} 50... Kg6 {[%clk 0:00:13.1]} 51. Bf1
{[%clk 0:00:12.3]} 51... Rxh3+ {[%clk 0:00:07.6]} 52. Bxh3 {[%clk 0:00:14.2]}
52... Qxh3+ {[%clk 0:00:07.7]} 53. Qh2 {[%clk 0:00:15.8]} 53... Qf1+ {[%clk
0:00:08.7]} 54. Qg1 {[%clk 0:00:17.4]} 54... Qh3+ {[%clk 0:00:10.6]} 55. Qh2
{[%clk 0:00:19.1]} 55... Qf1+ {[%clk 0:00:11.6]} 56. Qg1 {[%clk 0:00:20.6]}
56... Qh3+ {[%clk 0:00:12.9]} 57. Qh2 {[%clk 0:00:21.6]} 57... Qf1+ {[%clk
0:00:14.8]} 58. Qg1 {[%clk 0:00:23]} 58... Qh3+ {[%clk 0:00:16.7]} 59. Qh2
{[%clk 0:00:24.1]} 59... Qf1+ {[%clk 0:00:16.9]} 60. Qg1 {[%clk 0:00:25.4]}
60... Qh3+ {[%clk 0:00:18.8]} 61. Qh2 {[%clk 0:00:26.7]} 61... Qf1+ {[%clk
0:00:20.7]} 62. Qg1 {[%clk 0:00:27.6]} 1/2-1/2

[Event "*** Titled Tuesday 3|2 Blitz"]
[Site "Chess.com"]
[Date "2015.03.03"]
[Round "4"]
[White "LADIESGET2KNOWME"]
[Black "Colombiano07"]
[Result "1-0"]
[WhiteElo "2267"]
[BlackElo "1967"]
[TimeControl "180+2"]
[EndTime "11:43:51 PST"]
[Termination "LADIESGET2KNOWME won by resignation"]

1. d4 {[%clk 0:03:00]} 1... d5 {[%clk 0:02:58.6]} 2. Nc3 {[%clk 0:02:59.6]} 2...
e6 {[%clk 0:02:58.8]} 3. e4 {[%clk 0:02:59.6]} 3... Bb4 {[%clk 0:02:57.7]} 4. e5
{[%clk 0:02:58.3]} 4... c5 {[%clk 0:02:58.2]} 5. Bd2 {[%clk 0:02:58.1]} 5...
cxd4 {[%clk 0:02:57.8]} 6. Nb5 {[%clk 0:02:59.1]} 6... Bxd2+ {[%clk 0:02:56.8]}
7. Qxd2 {[%clk 0:03:01]} 7... Nc6 {[%clk 0:02:49.3]} 8. f4 {[%clk 0:03:01.6]}
8... Nh6 {[%clk 0:02:47.5]} 9. Nd6+ {[%clk 0:03:01.4]} 9... Ke7 {[%clk
0:02:48.5]} 10. Nf3 {[%clk 0:03:03.3]} 10... g6 {[%clk 0:02:48.6]} 11. Bd3
{[%clk 0:02:56.9]} 11... Qb6 {[%clk 0:02:29.6]} 12. f5 {[%clk 0:02:50.3]} 12...
Nxf5 {[%clk 0:02:21.9]} 13. Qg5+ {[%clk 0:02:41.3]} 13... Kf8 {[%clk 0:02:13.2]}
14. Qf6 {[%clk 0:02:26.6]} 1-0

[Event "*** Titled Tuesday 3|2 Blitz"]
[Site "Chess.com"]
[Date "2015.03.03"]
[Round "4"]
[White "raskolnnikov"]
[Black "GGuseinov"]
[Result "0-1"]
[WhiteElo "2275"]
[BlackElo "2574"]
[TimeControl "180+2"]
[EndTime "11:45:20 PST"]
[Termination "GGuseinov won by resignation"]

1. d4 {[%clk 0:03:00]} 1... Nf6 {[%clk 0:02:58.3]} 2. c4 {[%clk 0:03:01.1]} 2...
g6 {[%clk 0:02:59.5]} 3. Nf3 {[%clk 0:03:02]} 3... Bg7 {[%clk 0:03:00.2]} 4. g3
{[%clk 0:03:03.4]} 4... O-O {[%clk 0:03:01.3]} 5. Bg2 {[%clk 0:03:05]} 5... c5
{[%clk 0:02:59.7]} 6. d5 {[%clk 0:03:05.7]} 6... b5 {[%clk 0:02:58.6]} 7. cxb5
{[%clk 0:03:07.6]} 7... Qa5+ {[%clk 0:02:58]} 8. Bd2 {[%clk 0:02:54.4]} 8...
Qxb5 {[%clk 0:02:59]} 9. Bc3 {[%clk 0:02:55.7]} 9... d6 {[%clk 0:02:57.4]} 10.
O-O {[%clk 0:02:54.6]} 10... Nbd7 {[%clk 0:02:58.4]} 11. a4 {[%clk 0:02:53.3]}
11... Qb7 {[%clk 0:02:53.3]} 12. a5 {[%clk 0:02:53.1]} 12... Rb8 {[%clk
0:02:53.7]} 13. Nh4 {[%clk 0:02:39.1]} 13... Qb3 {[%clk 0:02:46.3]} 14. Qxb3
{[%clk 0:02:23]} 14... Rxb3 {[%clk 0:02:48.2]} 15. Nd2 {[%clk 0:02:24.4]} 15...
Rb8 {[%clk 0:02:47.4]} 16. Rfe1 {[%clk 0:02:19.6]} 16... Ba6 {[%clk 0:02:39.7]}
17. h3 {[%clk 0:02:17.6]} 17... Ne8 {[%clk 0:02:36.1]} 18. Bxg7 {[%clk
0:02:14.6]} 18... Kxg7 {[%clk 0:02:33]} 19. b3 {[%clk 0:02:15.9]} 19... Nc7
{[%clk 0:02:32.9]} 20. Nhf3 {[%clk 0:02:12.5]} 20... Nxd5 {[%clk 0:02:31.6]} 21.
e4 {[%clk 0:02:09.7]} 21... Nb4 {[%clk 0:02:31.1]} 22. Red1 {[%clk 0:02:00.8]}
22... f6 {[%clk 0:02:27.9]} 23. Bf1 {[%clk 0:02:01.1]} 23... Bxf1 {[%clk
0:02:27.1]} 24. Kxf1 {[%clk 0:02:03]} 24... Ne5 {[%clk 0:02:28.2]} 25. Ke2
{[%clk 0:02:01.4]} 25... Nxf3 {[%clk 0:02:25.6]} 26. Kxf3 {[%clk 0:01:58.5]}
26... Nc2 {[%clk 0:02:24.4]} 27. Rab1 {[%clk 0:01:55.9]} 27... Rb5 {[%clk
0:02:25.1]} 28. Rdc1 {[%clk 0:01:47]} 28... Nd4+ {[%clk 0:02:24.5]} 29. Ke3
{[%clk 0:01:48.3]} 29... Rfb8 {[%clk 0:02:23.1]} 30. b4 {[%clk 0:01:48.5]} 30...
Rxb4 {[%clk 0:02:22]} 31. Rxb4 {[%clk 0:01:48.8]} 31... Rxb4 {[%clk 0:02:23.6]}
0-1

[Event "*** Titled Tuesday 3|2 Blitz"]
[Site "Chess.com"]
[Date "2015.03.03"]
[Round "4"]
[White "MITerryble"]
[Black "Chesseducation4u"]
[Result "1-0"]
[WhiteElo "2504"]
[BlackElo "2323"]
[TimeControl "180+2"]
[EndTime "11:45:50 PST"]
[Termination "MITerryble won by resignation"]

1. d4 {[%clk 0:02:59.1]} 1... Nf6 {[%clk 0:02:58.1]} 2. Nf3 {[%clk 0:03:00.5]}
2... g6 {[%clk 0:02:59.6]} 3. Bg5 {[%clk 0:03:01.6]} 3... Bg7 {[%clk 0:03:00.9]}
4. Nbd2 {[%clk 0:03:02.9]} 4... d5 {[%clk 0:03:00.7]} 5. c3 {[%clk 0:03:04.2]}
5... O-O {[%clk 0:02:59.8]} 6. e3 {[%clk 0:03:05.4]} 6... Nbd7 {[%clk
0:03:00.9]} 7. Be2 {[%clk 0:03:05.6]} 7... Re8 {[%clk 0:03:01.5]} 8. O-O {[%clk
0:03:06.7]} 8... e5 {[%clk 0:03:02.2]} 9. b4 {[%clk 0:03:08.3]} 9... c6 {[%clk
0:03:02.5]} 10. Bh4 {[%clk 0:03:08.7]} 10... Qb6 {[%clk 0:02:57.8]} 11. a4
{[%clk 0:03:08.4]} 11... a5 {[%clk 0:02:57.9]} 12. bxa5 {[%clk 0:03:09.2]} 12...
Qxa5 {[%clk 0:02:55.5]} 13. Qc2 {[%clk 0:03:08.3]} 13... exd4 {[%clk 0:02:11.5]}
14. cxd4 {[%clk 0:03:10.2]} 14... Nf8 {[%clk 0:02:09.9]} 15. Nb3 {[%clk
0:03:01.4]} 15... Qa7 {[%clk 0:02:01.7]} 16. a5 {[%clk 0:02:55.2]} 16... Ne4
{[%clk 0:01:59.5]} 17. Nfd2 {[%clk 0:02:52.1]} 17... Bf5 {[%clk 0:01:51.9]} 18.
Bd3 {[%clk 0:02:52.5]} 18... Nxd2 {[%clk 0:01:48.9]} 19. Qxd2 {[%clk 0:02:53.6]}
19... Bxd3 {[%clk 0:01:48.7]} 20. Qxd3 {[%clk 0:02:55.5]} 20... Ne6 {[%clk
0:01:47.1]} 21. Bg3 {[%clk 0:02:56.3]} 21... c5 {[%clk 0:01:38.5]} 22. Qb5
{[%clk 0:02:28.9]} 22... cxd4 {[%clk 0:01:35.2]} 23. exd4 {[%clk 0:02:27.5]}
23... Nxd4 {[%clk 0:01:29.7]} 24. Nxd4 {[%clk 0:02:28.3]} 24... Bxd4 {[%clk
0:01:29.5]} 25. Rad1 {[%clk 0:02:17.8]} 25... Re4 {[%clk 0:01:23.9]} 26. Kh1
{[%clk 0:02:15.4]} 26... Qxa5 {[%clk 0:01:21.5]} 27. Qxa5 {[%clk 0:02:15.8]}
27... Rxa5 {[%clk 0:01:21.4]} 28. f3 {[%clk 0:02:17.4]} 1-0

[Event "*** Titled Tuesday 3|2 Blitz"]
[Site "Chess.com"]
[Date "2015.03.03"]
[Round "4"]
[White "Gevorg_Harutjunyan"]
[Black "Brandon_Clarke"]
[Result "1-0"]
[WhiteElo "2509"]
[BlackElo "2310"]
[TimeControl "180+2"]
[EndTime "11:47:15 PST"]
[Termination "Gevorg_Harutjunyan won by resignation"]

1. e4 {[%clk 0:02:58.9]} 1... c5 {[%clk 0:01:57.9]} 2. Nc3 {[%clk 0:02:59.6]}
2... Nc6 {[%clk 0:01:58.1]} 3. Bb5 {[%clk 0:03:00]} 3... Nd4 {[%clk 0:01:58.3]}
4. Bc4 {[%clk 0:03:01.3]} 4... g6 {[%clk 0:01:58.9]} 5. Nf3 {[%clk 0:03:02.8]}
5... Nxf3+ {[%clk 0:01:57.2]} 6. Qxf3 {[%clk 0:03:02.6]} 6... e6 {[%clk
0:01:58.5]} 7. d3 {[%clk 0:02:58.2]} 7... Bg7 {[%clk 0:01:59.4]} 8. Nb5 {[%clk
0:02:55]} 8... d6 {[%clk 0:01:27.1]} 9. Bf4 {[%clk 0:02:55]} 9... Bf8 {[%clk
0:01:21.4]} 10. Qg3 {[%clk 0:02:46.6]} 10... Nf6 {[%clk 0:00:29.1]} 11. Nxd6+
{[%clk 0:02:42.1]} 11... Bxd6 {[%clk 0:00:25.6]} 12. Bxd6 {[%clk 0:02:44]} 12...
Nh5 {[%clk 0:00:15.9]} 13. Qe5 {[%clk 0:02:45.3]} 13... f6 {[%clk 0:00:16.3]}
14. Qxc5 {[%clk 0:02:44.1]} 14... b6 {[%clk 0:00:17.8]} 15. Qa3 {[%clk
0:02:28.9]} 15... Kf7 {[%clk 0:00:19.1]} 16. g4 {[%clk 0:02:23.1]} 16... Ng7
{[%clk 0:00:19.7]} 17. f4 {[%clk 0:02:24.7]} 17... Bd7 {[%clk 0:00:19.3]} 18. f5
{[%clk 0:02:23]} 18... gxf5 {[%clk 0:00:20]} 19. gxf5 {[%clk 0:02:24]} 19... Qe8
{[%clk 0:00:17.9]} 20. O-O-O {[%clk 0:02:24]} 20... b5 {[%clk 0:00:17.9]} 21.
fxe6+ {[%clk 0:02:16.5]} 21... Nxe6 {[%clk 0:00:18.5]} 22. Bd5 {[%clk
0:02:17.1]} 22... Rc8 {[%clk 0:00:19.2]} 23. Rdf1 {[%clk 0:02:17.4]} 23... Rg8
{[%clk 0:00:16.4]} 24. Be5 {[%clk 0:02:08.1]} 24... Rg2 {[%clk 0:00:14.3]} 25.
Rxf6+ {[%clk 0:02:02.3]} 25... Kg8 {[%clk 0:00:15.5]} 26. Bc3 {[%clk 0:01:52.2]}
26... h5 {[%clk 0:00:04.3]} 27. Qd6 {[%clk 0:01:47.1]} 1-0

[Event "*** Titled Tuesday 3|2 Blitz"]
[Site "Chess.com"]
[Date "2015.03.03"]
[Round "4"]
[White "Malev212"]
[Black "Mugzyyy"]
[Result "0-1"]
[WhiteElo "2055"]
[BlackElo "2325"]
[TimeControl "180+2"]
[EndTime "11:47:20 PST"]
[Termination "Mugzyyy won by resignation"]

1. d4 {[%clk 0:03:00]} 1... e6 {[%clk 0:02:59.1]} 2. c4 {[%clk 0:03:00.1]} 2...
Bb4+ {[%clk 0:03:00.1]} 3. Nd2 {[%clk 0:03:00.3]} 3... c5 {[%clk 0:03:01]} 4. a3
{[%clk 0:02:58.1]} 4... Bxd2+ {[%clk 0:03:02]} 5. Qxd2 {[%clk 0:02:59.1]} 5...
cxd4 {[%clk 0:03:03.6]} 6. Nf3 {[%clk 0:02:58.7]} 6... Nf6 {[%clk 0:03:01.7]} 7.
Nxd4 {[%clk 0:02:59.3]} 7... Nc6 {[%clk 0:03:00.6]} 8. g3 {[%clk 0:02:37.7]}
8... Qb6 {[%clk 0:02:41]} 9. Nb5 {[%clk 0:02:24.2]} 9... Ne4 {[%clk 0:02:42]}
10. Qe3 {[%clk 0:02:13.7]} 10... Qa5+ {[%clk 0:02:31.3]} 11. Bd2 {[%clk
0:01:49.2]} 11... Nxd2 {[%clk 0:02:29]} 12. Qxd2 {[%clk 0:01:50]} 12... Qxd2+
{[%clk 0:02:30.2]} 13. Kxd2 {[%clk 0:01:50.6]} 13... Ke7 {[%clk 0:02:31.8]} 14.
c5 {[%clk 0:01:48.1]} 14... b6 {[%clk 0:02:31.1]} 15. b4 {[%clk 0:01:43.8]}
15... bxc5 {[%clk 0:02:25.6]} 16. bxc5 {[%clk 0:01:43.5]} 16... Rb8 {[%clk
0:02:27.1]} 17. Nd6 {[%clk 0:01:26]} 17... Ba6 {[%clk 0:02:24.8]} 18. Kc3 {[%clk
0:01:22]} 18... Na5 {[%clk 0:02:23.1]} 19. e4 {[%clk 0:01:14.1]} 19... Bxf1
{[%clk 0:02:10.5]} 20. Rhxf1 {[%clk 0:01:13.5]} 20... Nb3 {[%clk 0:02:12.2]} 21.
Rab1 {[%clk 0:01:05.1]} 21... Nxc5 {[%clk 0:02:13.4]} 22. e5 {[%clk 0:01:05.5]}
22... f6 {[%clk 0:02:14.9]} 23. f4 {[%clk 0:01:05.2]} 23... Rb6 {[%clk
0:02:10.9]} 24. Rxb6 {[%clk 0:01:02.4]} 24... axb6 {[%clk 0:02:12.1]} 25. Rb1
{[%clk 0:01:02.6]} 25... Ra8 {[%clk 0:02:13.3]} 26. Nc4 {[%clk 0:00:47.7]} 26...
Ra6 {[%clk 0:01:59.2]} 27. Kd4 {[%clk 0:00:45.9]} 27... Na4 {[%clk 0:01:57.5]}
28. Rb4 {[%clk 0:00:42.7]} 28... Kd8 {[%clk 0:01:57.7]} 29. Nd6 {[%clk
0:00:35.5]} 29... fxe5+ {[%clk 0:01:58.1]} 30. fxe5 {[%clk 0:00:34.1]} 30... Kc7
{[%clk 0:01:59.6]} 31. Ne8+ {[%clk 0:00:34.3]} 31... Kc6 {[%clk 0:02:01]} 32.
Rc4+ {[%clk 0:00:31.8]} 32... Nc5 {[%clk 0:02:01.9]} 33. Nxg7 {[%clk 0:00:30.1]}
33... Rxa3 {[%clk 0:02:03.1]} 34. Rb4 {[%clk 0:00:29.6]} 34... b5 {[%clk
0:02:00]} 0-1

[Event "*** Titled Tuesday 3|2 Blitz"]
[Site "Chess.com"]
[Date "2015.03.03"]
[Round "4"]
[White "Schemato"]
[Black "Yaacovn"]
[Result "0-1"]
[WhiteElo "2078"]
[BlackElo "2533"]
[TimeControl "180+2"]
[EndTime "11:47:40 PST"]
[Termination "Yaacovn won by checkmate"]

1. c4 {[%clk 0:03:00]} 1... e5 {[%clk 0:01:35.8]} 2. g3 {[%clk 0:02:56.1]} 2...
Nc6 {[%clk 0:01:37.1]} 3. Nc3 {[%clk 0:02:56.4]} 3... f5 {[%clk 0:01:39]} 4. Nf3
{[%clk 0:02:56.5]} 4... Nf6 {[%clk 0:01:40.9]} 5. d4 {[%clk 0:02:56.9]} 5... Bb4
{[%clk 0:01:42.8]} 6. dxe5 {[%clk 0:02:45.4]} 6... Ne4 {[%clk 0:01:43.5]} 7. Bd2
{[%clk 0:02:31]} 7... Bxc3 {[%clk 0:01:44]} 8. Bxc3 {[%clk 0:02:29.7]} 8... Nxc3
{[%clk 0:01:44.9]} 9. bxc3 {[%clk 0:02:30.4]} 9... Qe7 {[%clk 0:01:46.7]} 10.
Qd5 {[%clk 0:02:24.5]} 10... Qa3 {[%clk 0:01:47.8]} 11. Qd3 {[%clk 0:01:54.5]}
11... O-O {[%clk 0:01:47.8]} 12. Bg2 {[%clk 0:01:52.5]} 12... Qe7 {[%clk
0:01:48.5]} 13. Qd5+ {[%clk 0:01:48.8]} 13... Kh8 {[%clk 0:01:49.9]} 14. O-O
{[%clk 0:01:44.3]} 14... Re8 {[%clk 0:01:51.2]} 15. Bh3 {[%clk 0:01:36.1]} 15...
g6 {[%clk 0:01:49]} 16. c5 {[%clk 0:01:20.2]} 16... Nxe5 {[%clk 0:01:49.6]} 17.
Bg2 {[%clk 0:01:13.4]} 17... Rb8 {[%clk 0:01:47.7]} 18. Rfd1 {[%clk 0:01:07.5]}
18... b6 {[%clk 0:01:48.8]} 19. cxb6 {[%clk 0:01:03.9]} 19... axb6 {[%clk
0:01:50.7]} 20. a4 {[%clk 0:00:57.6]} 20... d6 {[%clk 0:01:51.6]} 21. a5 {[%clk
0:00:51.6]} 21... Bb7 {[%clk 0:01:48.4]} 22. Qd4 {[%clk 0:00:48.9]} 22... bxa5
{[%clk 0:01:49.7]} 23. Rxa5 {[%clk 0:00:44.4]} 23... Bxf3 {[%clk 0:01:50.9]} 24.
Bxf3 {[%clk 0:00:36.2]} 24... Qg7 {[%clk 0:01:51.3]} 25. Bg2 {[%clk 0:00:30.7]}
25... Rb2 {[%clk 0:01:51.8]} 26. e3 {[%clk 0:00:27.5]} 26... h5 {[%clk
0:01:50.5]} 27. Ra7 {[%clk 0:00:23.2]} 27... Re7 {[%clk 0:01:51.6]} 28. c4
{[%clk 0:00:21.4]} 28... Rb4 {[%clk 0:01:52.7]} 29. Bd5 {[%clk 0:00:18.1]} 29...
Kh7 {[%clk 0:01:51.3]} 30. f4 {[%clk 0:00:18.1]} 30... Ng4 {[%clk 0:01:50]} 31.
Qxg7+ {[%clk 0:00:18.3]} 31... Kxg7 {[%clk 0:01:51.9]} 32. e4 {[%clk 0:00:18.3]}
32... fxe4 {[%clk 0:01:52.9]} 33. Re1 {[%clk 0:00:18.4]} 33... e3 {[%clk
0:01:53.5]} 34. h3 {[%clk 0:00:17.7]} 34... Nf2 {[%clk 0:01:55]} 35. Kg2 {[%clk
0:00:15.2]} 35... Rb2 {[%clk 0:01:54.6]} 36. Kf3 {[%clk 0:00:16.3]} 36... Nd3
{[%clk 0:01:54.3]} 37. Rxe3 {[%clk 0:00:16.2]} 37... Rf2# {[%clk 0:01:55.4]} 0-1